fUSD/lending_fUSD_20260531
["ID","MTS","AMOUNT","RATE_DAILY","PERIOD"]
[423514411,1780177832000,-150.59612134,0.00014776,7]
[423514410,1780177832000,-500.0,0.0001477,2]
[423514415,1780177832000,-500.0,0.0001485,2]
[423514416,1780177832000,-500.0,0.0001485,2]
[423514418,1780177832000,-500.0,0.0001485,2]
[423514419,1780177832000,-500.0,0.0001485,2]
[423514426,1780177832000,-500.0,0.0001485,2]
[423514427,1780177832000,-500.0,0.0001485,2]
[423514421,1780177832000,-500.0,0.0001485,2]
[423514428,1780177832000,-500.0,0.0001485,2]
[423514430,1780177832000,-500.0,0.00014867,2]
[423514422,1780177832000,-500.0,0.0001485,2]
[423514424,1780177832000,-500.0,0.0001485,2]
[423514429,1780177832000,-500.0,0.00014867,2]
[423514420,1780177832000,-500.0,0.0001485,2]
[423514425,1780177832000,-500.0,0.0001485,2]
[423514423,1780177832000,-500.0,0.0001485,2]
[423514431,1780177832000,-500.0,0.00014867,2]
[423514433,1780177832000,-500.0,0.00014867,2]
[423514432,1780177832000,-500.0,0.00014867,2]
[423514375,1780177832000,-166.49,0.00014018,2]
[423514412,1780177832000,-166.49,0.0001479,2]
[423514406,1780177832000,-500.0,0.0001477,2]
[423514377,1780177832000,-251.92,0.00014079,2]
[423514404,1780177832000,-500.0,0.0001477,2]
[423514376,1780177832000,-150.00000001,0.00014072,7]
[423514379,1780177832000,-251.92,0.00014154,2]
[423514380,1780177832000,-251.92,0.0001423,2]
[423514378,1780177832000,-166.66,0.00014104,2]
[423514382,1780177832000,-251.92,0.00014381,2]
[423514381,1780177832000,-251.92,0.00014305,2]
[423514383,1780177832000,-166.66,0.00014395,2]
[423514405,1780177832000,-500.0,0.0001477,2]
[423514384,1780177832000,-251.92,0.00014456,2]
[423514386,1780177832000,-251.92,0.00014532,2]
[423514387,1780177832000,-2632.55,0.0001454,2]
[423514390,1780177832000,-251.92,0.00014683,2]
[423514388,1780177832000,-251.92,0.00014607,2]
[423514385,1780177832000,-209.12966642,0.00014469,2]
[423514392,1780177832000,-159.1,0.00014715,2]
[423514391,1780177832000,-166.66,0.00014686,2]
[423514397,1780177832000,-500.0,0.0001477,2]
[423514401,1780177832000,-500.0,0.0001477,2]
[423514399,1780177832000,-500.0,0.0001477,2]
[423514400,1780177832000,-500.0,0.0001477,2]
[423514402,1780177832000,-500.0,0.0001477,2]
[423514403,1780177832000,-500.0,0.0001477,2]
[423514396,1780177832000,-500.0,0.0001477,2]
[423514395,1780177832000,-500.0,0.0001477,2]
[423514394,1780177832000,-500.0,0.0001477,2]
[423514393,1780177832000,-251.92,0.00014758,2]
[423514389,1780177832000,-5324.25317749,0.0001467,2]
[423514398,1780177832000,-351.3728129,0.0001477,2]
[423514473,1780177833000,-500.0,0.00014999,2]
[423514468,1780177833000,-500.0,0.00014999,2]
[423514475,1780177833000,-500.0,0.00014999,2]
[423514472,1780177833000,-500.0,0.00014999,2]
[423514470,1780177833000,-500.0,0.00014999,2]
[423514466,1780177833000,-500.0,0.00014999,2]
[423514471,1780177833000,-500.0,0.00014999,2]
[423514474,1780177833000,-500.0,0.00014999,2]
[423514467,1780177833000,-500.0,0.00014999,2]
[423514464,1780177833000,-500.0,0.00014999,2]
[423514469,1780177833000,-500.0,0.00014999,2]
[423514476,1780177833000,-500.0,0.00014999,2]
[423514494,1780177833000,-500.0,0.00014999,2]
[423514477,1780177833000,-207.9347959,0.00014999,2]
[423514479,1780177833000,-500.0,0.00014999,2]
[423514480,1780177833000,-500.0,0.00014999,2]
[423514482,1780177833000,-500.0,0.00014999,2]
[423514481,1780177833000,-500.0,0.00014999,2]
[423514484,1780177833000,-500.0,0.00014999,2]
[423514483,1780177833000,-500.0,0.00014999,2]
[423514485,1780177833000,-500.0,0.00014999,2]
[423514486,1780177833000,-500.0,0.00014999,2]
[423514487,1780177833000,-500.0,0.00014999,2]
[423514488,1780177833000,-500.0,0.00014999,2]
[423514496,1780177833000,-500.0,0.00014999,2]
[423514465,1780177833000,-500.0,0.00014999,2]
[423514478,1780177833000,-500.0,0.00014999,2]
[423514462,1780177833000,-500.0,0.00014999,2]
[423514445,1780177833000,-166.66,0.00014976,2]
[423514459,1780177833000,-500.0,0.00014999,2]
[423514434,1780177833000,-500.0,0.00014867,2]
[423514436,1780177833000,-500.0,0.00014867,2]
[423514441,1780177833000,-150.0,0.00014894,2]
[423514438,1780177833000,-500.0,0.00014867,2]
[423514437,1780177833000,-500.0,0.00014867,2]
[423514435,1780177833000,-500.0,0.00014867,2]
[423514440,1780177833000,-500.0,0.00014867,2]
[423514439,1780177833000,-500.0,0.00014867,2]
[423514442,1780177833000,-2500.0,0.00014899,2]
[423514446,1780177833000,-251.92,0.00014985,2]
[423514449,1780177833000,-500.0,0.00014998,2]
[423514453,1780177833000,-507.3337877,0.00014998,2]
[423514460,1780177833000,-500.0,0.00014999,2]
[423514448,1780177833000,-500.0,0.00014998,2]
[423514450,1780177833000,-500.0,0.00014998,2]
[423514443,1780177833000,-2632.55,0.00014904,2]
[423514447,1780177833000,-1381.65,0.00014985,2]
[423514452,1780177833000,-500.0,0.00014998,2]
[423514451,1780177833000,-500.0,0.00014998,2]
[423514454,1780177833000,-500.0,0.00014999,2]
[423514456,1780177833000,-500.0,0.00014999,2]
[423514455,1780177833000,-500.0,0.00014999,2]
[423514457,1780177833000,-500.0,0.00014999,2]
[423514458,1780177833000,-500.0,0.00014999,2]
[423514463,1780177833000,-500.0,0.00014999,2]
[423514461,1780177833000,-500.0,0.00014999,2]
[423514444,1780177833000,-251.92,0.00014909,2]
[423514495,1780177833000,-512.05018733,0.00014999,2]
[423514499,1780177833000,-500.0,0.00014999,2]
[423514497,1780177833000,-500.0,0.00014999,2]
[423514526,1780177833000,-500.0,0.00014999,2]
[423514527,1780177833000,-313.45446805,0.00014999,2]
[423514525,1780177833000,-500.0,0.00014999,2]
[423514529,1780177833000,-500.0,0.00014999,2]
[423514528,1780177833000,-500.0,0.00014999,2]
[423514530,1780177833000,-500.0,0.00014999,2]
[423514531,1780177833000,-500.0,0.00014999,2]
[423514533,1780177833000,-500.0,0.00014999,2]
[423514535,1780177833000,-500.0,0.00014999,2]
[423514534,1780177833000,-500.0,0.00014999,2]
[423514532,1780177833000,-500.0,0.00014999,2]
[423514536,1780177833000,-500.0,0.00014999,2]
[423514524,1780177833000,-500.0,0.00014999,2]
[423514537,1780177833000,-334.19838374,0.00014999,2]
[423514547,1780177833000,-200.0,0.00015325,2]
[423514543,1780177833000,-2500.0,0.000152,2]
[423514542,1780177833000,-2200.0,0.00015077,2]
[423514544,1780177833000,-166.66,0.00015267,2]
[423514548,1780177833000,-159.1,0.0001549,2]
[423514538,1780177833000,-184.0,0.00014999,2]
[423514545,1780177833000,-2632.55,0.00015267,2]
[423514546,1780177833000,-210.7,0.000153,2]
[423514541,1780177833000,-900.0,0.00015068,2]
[423514549,1780177833000,-166.49,0.00015561,2]
[423514550,1780177833000,-472.99,0.000156,2]
[423514490,1780177833000,-500.0,0.00014999,2]
[423514539,1780177833000,-184.21338479,0.00014999,2]
[423514521,1780177833000,-500.0,0.00014999,2]
[423514540,1780177833000,-251.92,0.0001506,2]
[423514519,1780177833000,-500.0,0.00014999,2]
[423514523,1780177833000,-500.0,0.00014999,2]
[423514489,1780177833000,-500.0,0.00014999,2]
[423514491,1780177833000,-500.0,0.00014999,2]
[423514492,1780177833000,-322.28,0.00014999,2]
[423514498,1780177833000,-500.0,0.00014999,2]
[423514500,1780177833000,-500.0,0.00014999,2]
[423514502,1780177833000,-500.0,0.00014999,2]
[423514501,1780177833000,-500.0,0.00014999,2]
[423514508,1780177833000,-419.13,0.00014999,2]
[423514503,1780177833000,-500.0,0.00014999,2]
[423514505,1780177833000,-500.0,0.00014999,2]
[423514506,1780177833000,-500.0,0.00014999,2]
[423514504,1780177833000,-500.0,0.00014999,2]
[423514493,1780177833000,-500.0,0.00014999,2]
[423514511,1780177833000,-500.0,0.00014999,2]
[423514507,1780177833000,-500.0,0.00014999,2]
[423514516,1780177833000,-500.0,0.00014999,2]
[423514522,1780177833000,-500.0,0.00014999,2]
[423514518,1780177833000,-500.0,0.00014999,2]
[423514517,1780177833000,-500.0,0.00014999,2]
[423514515,1780177833000,-500.0,0.00014999,2]
[423514520,1780177833000,-500.0,0.00014999,2]
[423514514,1780177833000,-553.36280109,0.00014999,2]
[423514512,1780177833000,-500.0,0.00014999,2]
[423514509,1780177833000,-500.0,0.00014999,2]
[423514510,1780177833000,-500.0,0.00014999,2]
[423514513,1780177833000,-500.0,0.00014999,2]
[423514576,1780177834000,-420.45070713,0.00016337,2]
[423514575,1780177834000,-500.0,0.00016337,2]
[423514583,1780177834000,-500.0,0.00016337,2]
[423514577,1780177834000,-500.0,0.00016337,2]
[423514578,1780177834000,-500.0,0.00016337,2]
[423514579,1780177834000,-500.0,0.00016337,2]
[423514580,1780177834000,-500.0,0.00016337,2]
[423514582,1780177834000,-500.0,0.00016337,2]
[423514581,1780177834000,-500.0,0.00016337,2]
[423514585,1780177834000,-500.0,0.00016337,2]
[423514596,1780177834000,-500.0,0.00016337,2]
[423514586,1780177834000,-500.0,0.00016337,2]
[423514587,1780177834000,-500.0,0.00016337,2]
[423514589,1780177834000,-500.0,0.00016337,2]
[423514592,1780177834000,-500.0,0.00016337,2]
[423514593,1780177834000,-500.0,0.00016337,2]
[423514590,1780177834000,-500.0,0.00016337,2]
[423514574,1780177834000,-500.0,0.00016337,2]
[423514588,1780177834000,-500.0,0.00016337,2]
[423514584,1780177834000,-500.0,0.00016337,2]
[423514572,1780177834000,-194.38132776,0.00016328,2]
[423514556,1780177834000,-454.26075914,0.00016,2]
[423514566,1780177834000,-159.1,0.00016264,2]
[423514591,1780177834000,-500.0,0.00016337,2]
[423514553,1780177834000,-200.0,0.00015878,2]
[423514555,1780177834000,-300.0,0.00016,2]
[423514559,1780177834000,-500.0,0.00016183,2]
[423514558,1780177834000,-454.26075914,0.000161,2]
[423514554,1780177834000,-2632.55,0.00015994,2]
[423514557,1780177834000,-243.896559,0.00016011,2]
[423514552,1780177834000,-1478.0,0.0001566,2]
[423514551,1780177834000,-2632.55,0.00015631,2]
[423514560,1780177834000,-500.0,0.00016183,2]
[423514569,1780177834000,-19365.7734233,0.000163,2]
[423514563,1780177834000,-5324.25317743,0.00016219,2]
[423514565,1780177834000,-5000.0,0.00016238,2]
[423514561,1780177834000,-500.0,0.00016183,2]
[423514562,1780177834000,-454.26075914,0.000162,2]
[423514571,1780177834000,-2886.2398717,0.000163,2]
[423514570,1780177834000,-797.09195376,0.000163,2]
[423514568,1780177834000,-1424.3613151,0.000163,2]
[423514567,1780177834000,-223.58,0.000163,2]
[423514564,1780177834000,-4230.52386648,0.00016238,2]
[423514594,1780177834000,-500.0,0.00016337,2]
[423514573,1780177834000,-166.49,0.00016332,2]
[423514597,1780177834000,-573.31946531,0.00016337,2]
[423514621,1780177834000,-1044.8,0.00016337,2]
[423514623,1780177834000,-1044.8,0.00016337,2]
[423514622,1780177834000,-1044.8,0.00016337,2]
[423514624,1780177834000,-1044.8,0.00016337,2]
[423514626,1780177834000,-1044.8,0.00016337,2]
[423514632,1780177834000,-596.08,0.00016337,2]
[423514629,1780177834000,-596.08,0.00016337,2]
[423514625,1780177834000,-1044.8,0.00016337,2]
[423514630,1780177834000,-596.08,0.00016337,2]
[423514619,1780177834000,-1044.8,0.00016337,2]
[423514627,1780177834000,-500.0,0.00016337,2]
[423514633,1780177834000,-596.08,0.00016337,2]
[423514635,1780177834000,-596.08,0.00016337,2]
[423514636,1780177834000,-596.08,0.00016337,2]
[423514634,1780177834000,-596.08,0.00016337,2]
[423514637,1780177834000,-596.08,0.00016337,2]
[423514640,1780177834000,-3356.57964013,0.00016338,2]
[423514641,1780177834000,-5374.30872245,0.00016338,2]
[423514638,1780177834000,-742219.52550105,0.00016338,2]
[423514595,1780177834000,-500.0,0.00016337,2]
[423514631,1780177834000,-596.08,0.00016337,2]
[423514617,1780177834000,-1044.8,0.00016337,2]
[423514628,1780177834000,-596.08,0.00016337,2]
[423514639,1780177834000,-172756.82268272,0.00016338,2]
[423514620,1780177834000,-1044.8,0.00016337,2]
[423514598,1780177834000,-500.0,0.00016337,2]
[423514602,1780177834000,-500.0,0.00016337,2]
[423514601,1780177834000,-500.0,0.00016337,2]
[423514604,1780177834000,-500.0,0.00016337,2]
[423514600,1780177834000,-500.0,0.00016337,2]
[423514605,1780177834000,-500.0,0.00016337,2]
[423514606,1780177834000,-500.0,0.00016337,2]
[423514603,1780177834000,-500.0,0.00016337,2]
[423514608,1780177834000,-500.0,0.00016337,2]
[423514607,1780177834000,-500.0,0.00016337,2]
[423514609,1780177834000,-500.0,0.00016337,2]
[423514610,1780177834000,-500.0,0.00016337,2]
[423514611,1780177834000,-500.0,0.00016337,2]
[423514612,1780177834000,-500.0,0.00016337,2]
[423514615,1780177834000,-500.0,0.00016337,2]
[423514616,1780177834000,-500.0,0.00016337,2]
[423514613,1780177834000,-500.0,0.00016337,2]
[423514614,1780177834000,-500.0,0.00016337,2]
[423514618,1780177834000,-1044.8,0.00016337,2]
[423514599,1780177834000,-500.0,0.00016337,2]
[423514654,1780177838000,-976.29375122,0.00016338,2]
[423514652,1780177838000,-3750.25431286,0.00016338,2]
[423514653,1780177838000,-1221.94,0.00016338,2]
[423514657,1780177838000,-1386.35636678,0.00016338,2]
[423514658,1780177838000,-6515.24748636,0.00016338,2]
[423514656,1780177838000,-842.00462953,0.00016338,2]
[423514659,1780177838000,-1976.09516634,0.00016338,2]
[423514655,1780177838000,-550.47943851,0.00016338,2]
[423514698,1780177840000,-703.21,0.00016983,2]
[423514695,1780177840000,-1381.65,0.00016858,2]
[423514690,1780177840000,-900.0,0.00016438,2]
[423514689,1780177840000,-3023.9,0.00016438,2]
[423514688,1780177840000,-1387.76016046,0.000164,2]
[423514685,1780177840000,-302.46,0.000164,2]
[423514684,1780177840000,-213.0,0.000164,2]
[423514686,1780177840000,-356.81726835,0.000164,2]
[423514682,1780177840000,-1512749.66511161,0.00016338,2]
[423514683,1780177840000,-150.0,0.000164,2]
[423514681,1780177840000,-45246.83153198,0.00016338,2]
[423514679,1780177840000,-459.67,0.00016338,2]
[423514680,1780177840000,-617.92565846,0.00016338,2]
[423514687,1780177840000,-490.94,0.000164,2]
[423514692,1780177840000,-1387.76016046,0.000166,2]
[423514697,1780177840000,-288.87,0.00016983,2]
[423514696,1780177840000,-1387.76016046,0.000169,2]
[423514693,1780177840000,-168.13,0.00016712,2]
[423514709,1780177840000,-159.1,0.00017813,2]
[423514710,1780177840000,-1021.91305727,0.00018,2]
[423514707,1780177840000,-5324.25317743,0.00017768,2]
[423514703,1780177840000,-1387.76016046,0.000174,2]
[423514704,1780177840000,-1387.76016046,0.000176,2]
[423514708,1780177840000,-1387.76016046,0.000178,2]
[423514711,1780177840000,-236.04068925,0.00018,2]
[423514702,1780177840000,-1387.76016046,0.000173,2]
[423514706,1780177840000,-19365.77342329,0.0001767,2]
[423514701,1780177840000,-1387.76016046,0.000171,2]
[423514699,1780177840000,-380.11431921,0.0001703,2]
[423514700,1780177840000,-159.1,0.00017038,2]
[423514691,1780177840000,-1472.0,0.00016482,2]
[423514705,1780177840000,-189.85,0.00017669,2]
[423514694,1780177840000,-1387.76016046,0.000168,2]
[423514754,1780177841000,-4281.85,0.00019551,2]
[423514752,1780177841000,-159.1,0.00019362,2]
[423514758,1780177841000,-151.0,0.000196,2]
[423514761,1780177841000,-151.0,0.000196,2]
[423514750,1780177841000,-5324.25317743,0.00019317,2]
[423514746,1780177841000,-1021.91305727,0.000191,2]
[423514748,1780177841000,-888.0,0.00019245,2]
[423514744,1780177841000,-500.0,0.00019002,2]
[423514738,1780177841000,-490.94,0.000186,2]
[423514747,1780177841000,-605.72356,0.00019245,2]
[423514756,1780177841000,-151.0,0.000196,2]
[423514749,1780177841000,-1021.91305727,0.000193,2]
[423514753,1780177841000,-1021.91305727,0.000195,2]
[423514765,1780177841000,-247.43723804,0.000196,2]
[423514760,1780177841000,-221.88543241,0.000196,2]
[423514757,1780177841000,-200.0,0.000196,2]
[423514762,1780177841000,-230.09519341,0.000196,2]
[423514751,1780177841000,-500.0,0.00019338,2]
[423514755,1780177841000,-151.0,0.000196,2]
[423514764,1780177841000,-151.0,0.000196,2]
[423514743,1780177841000,-500.0,0.00019002,2]
[423514767,1780177841000,-256.59241585,0.000196,2]
[423514768,1780177841000,-266.08633524,0.000196,2]
[423514766,1780177841000,-151.0,0.000196,2]
[423514763,1780177841000,-238.60871557,0.000196,2]
[423514773,1780177841000,-296.7282131,0.000196,2]
[423514771,1780177841000,-286.14099624,0.000196,2]
[423514759,1780177841000,-151.0,0.000196,2]
[423514742,1780177841000,-1021.91305727,0.000189,2]
[423514727,1780177841000,-9999.99,0.00018533,2]
[423514745,1780177841000,-19365.77342329,0.00019039,2]
[423514712,1780177841000,-365.68469923,0.00018,2]
[423514713,1780177841000,-1387.76016046,0.00018,2]
[423514715,1780177841000,-1782.42,0.00018024,2]
[423514717,1780177841000,-1021.91305727,0.000182,2]
[423514719,1780177841000,-1021.91305727,0.000184,2]
[423514714,1780177841000,-350.0,0.00018,2]
[423514721,1780177841000,-3023.9,0.0001841,2]
[423514716,1780177841000,-596.08,0.00018199,2]
[423514720,1780177841000,-365.68469923,0.000184,2]
[423514723,1780177841000,-1021.91305727,0.000185,2]
[423514724,1780177841000,-365.68469923,0.000185,2]
[423514718,1780177841000,-365.68469923,0.000182,2]
[423514722,1780177841000,-18235.71241033,0.00018433,2]
[423514725,1780177841000,-721.0,0.00018519,2]
[423514726,1780177841000,-9999.99,0.00018533,2]
[423514735,1780177841000,-4999.99,0.00018533,2]
[423514730,1780177841000,-9999.99,0.00018533,2]
[423514729,1780177841000,-1344.08,0.00018533,2]
[423514736,1780177841000,-150.99,0.00018533,2]
[423514732,1780177841000,-9999.99,0.00018533,2]
[423514734,1780177841000,-3747.83,0.00018533,2]
[423514728,1780177841000,-10596.3,0.00018533,2]
[423514731,1780177841000,-299.99,0.00018533,4]
[423514733,1780177841000,-999.99,0.00018533,2]
[423514741,1780177841000,-1381.65,0.00018731,2]
[423514740,1780177841000,-365.68469923,0.000187,2]
[423514739,1780177841000,-1021.91305727,0.000187,2]
[423514737,1780177841000,-159.1,0.00018587,2]
[423514770,1780177841000,-151.0,0.000196,2]
[423514784,1780177841000,-500.0,0.000196,2]
[423514769,1780177841000,-275.93152964,0.000196,2]
[423514803,1780177841000,-151.0,0.000196,2]
[423514812,1780177841000,-804.65110196,0.0002,2]
[423514810,1780177841000,-208.83818787,0.0001965,2]
[423514808,1780177841000,-151.0,0.000196,2]
[423514807,1780177841000,-151.0,0.000196,2]
[423514809,1780177841000,-151.0,0.000196,2]
[423514805,1780177841000,-500.0,0.000196,2]
[423514811,1780177841000,-1021.91305727,0.000197,2]
[423514817,1780177841000,-551.0,0.0002,2]
[423514816,1780177841000,-549.0,0.0002,2]
[423514818,1780177841000,-263.0,0.0002,2]
[423514814,1780177841000,-410.0,0.0002,2]
[423514813,1780177841000,-299.0,0.0002,2]
[423514815,1780177841000,-185.0,0.0002,2]
[423514824,1780177841000,-400.0,0.0002,2]
[423514820,1780177841000,-816.0,0.0002,2]
[423514821,1780177841000,-240.0,0.0002,2]
[423514823,1780177841000,-1050.0,0.0002,2]
[423514825,1780177841000,-674.0,0.0002,2]
[423514822,1780177841000,-221.0,0.0002,2]
[423514828,1780177841000,-176.2224821,0.0002,2]
[423514826,1780177841000,-176.22248209,0.0002,2]
[423514831,1780177841000,-159.1,0.00020136,2]
[423514830,1780177841000,-797.09195375,0.0002011,2]
[423514829,1780177841000,-2049.0,0.0002,2]
[423514827,1780177841000,-176.22248209,0.0002,2]
[423514819,1780177841000,-212.0,0.0002,2]
[423514802,1780177841000,-500.0,0.000196,2]
[423514832,1780177841000,-200.0,0.00020148,2]
[423514800,1780177841000,-151.0,0.000196,2]
[423514806,1780177841000,-151.0,0.000196,2]
[423514774,1780177841000,-151.0,0.000196,2]
[423514778,1780177841000,-151.0,0.000196,2]
[423514776,1780177841000,-307.70715698,0.000196,2]
[423514782,1780177841000,-151.0,0.000196,2]
[423514777,1780177841000,-151.0,0.000196,2]
[423514779,1780177841000,-319.09232179,0.000196,2]
[423514786,1780177841000,-151.0,0.000196,2]
[423514787,1780177841000,-500.0,0.000196,2]
[423514780,1780177841000,-500.0,0.000196,2]
[423514781,1780177841000,-2080.17592889,0.000196,2]
[423514783,1780177841000,-151.0,0.000196,2]
[423514775,1780177841000,-500.0,0.000196,2]
[423514785,1780177841000,-151.0,0.000196,2]
[423514772,1780177841000,-500.0,0.000196,2]
[423514789,1780177841000,-151.0,0.000196,2]
[423514799,1780177841000,-500.0,0.000196,2]
[423514801,1780177841000,-151.0,0.000196,2]
[423514804,1780177841000,-151.0,0.000196,2]
[423514798,1780177841000,-151.0,0.000196,2]
[423514796,1780177841000,-500.0,0.000196,2]
[423514793,1780177841000,-500.0,0.000196,2]
[423514795,1780177841000,-151.0,0.000196,2]
[423514788,1780177841000,-151.0,0.000196,2]
[423514790,1780177841000,-500.0,0.000196,2]
[423514797,1780177841000,-151.0,0.000196,2]
[423514791,1780177841000,-151.0,0.000196,2]
[423514792,1780177841000,-151.0,0.000196,2]
[423514794,1780177841000,-151.0,0.000196,2]
[423514872,1780177842000,-493.01,0.00021419,2]
[423514873,1780177842000,-500.0,0.00021494,2]
[423514871,1780177842000,-493.01,0.00021315,2]
[423514867,1780177842000,-169.49,0.00021162,2]
[423514860,1780177842000,-221.0,0.00021,2]
[423514869,1780177842000,-200.0,0.00021244,2]
[423514870,1780177842000,-2319.72410669,0.00021244,2]
[423514866,1780177842000,-169.49,0.00021162,2]
[423514868,1780177842000,-493.01,0.0002121,2]
[423514864,1780177842000,-437.4,0.00021096,2]
[423514875,1780177842000,-1044.8,0.00021575,2]
[423514880,1780177842000,-277.43026773,0.00021658,2]
[423514874,1780177842000,-493.01,0.00021524,2]
[423514878,1780177842000,-200.0,0.00021619,2]
[423514877,1780177842000,-500.0,0.00021576,2]
[423514881,1780177842000,-899.2,0.00021679,2]
[423514865,1780177842000,-493.01,0.00021106,2]
[423514879,1780177842000,-493.01,0.00021628,2]
[423514882,1780177842000,-1000.0,0.00021714,2]
[423514891,1780177842000,-5000.0,0.00021918,2]
[423514888,1780177842000,-2405.55389863,0.00021792,2]
[423514885,1780177842000,-152.0,0.00021768,2]
[423514883,1780177842000,-493.01,0.00021733,2]
[423514890,1780177842000,-493.01,0.00021837,2]
[423514887,1780177842000,-200.0,0.00021792,2]
[423514876,1780177842000,-2000.0,0.00021575,2]
[423514861,1780177842000,-1050.0,0.00021,2]
[423514851,1780177842000,-299.0,0.00021,2]
[423514863,1780177842000,-493.01,0.00021001,2]
[423514884,1780177842000,-152.0,0.00021768,2]
[423514835,1780177842000,-3023.9,0.00020381,2]
[423514833,1780177842000,-2157.14243826,0.00020148,2]
[423514834,1780177842000,-804.65110196,0.000202,2]
[423514836,1780177842000,-804.65110196,0.000204,2]
[423514847,1780177842000,-490.94,0.000208,2]
[423514840,1780177842000,-804.65110196,0.000206,2]
[423514837,1780177842000,-19365.77342329,0.00020409,2]
[423514839,1780177842000,-12425.32,0.00020548,2]
[423514841,1780177842000,-1381.65,0.00020604,2]
[423514838,1780177842000,-500.0,0.00020521,2]
[423514844,1780177842000,-200.0,0.00020696,2]
[423514862,1780177842000,-674.0,0.00021,2]
[423514845,1780177842000,-2236.95670847,0.00020696,2]
[423514842,1780177842000,-168.13,0.00020639,2]
[423514856,1780177842000,-263.0,0.00021,2]
[423514853,1780177842000,-185.0,0.00021,2]
[423514859,1780177842000,-240.0,0.00021,2]
[423514857,1780177842000,-212.0,0.00021,2]
[423514850,1780177842000,-159.1,0.00020911,2]
[423514852,1780177842000,-410.0,0.00021,2]
[423514855,1780177842000,-551.0,0.00021,2]
[423514848,1780177842000,-5324.25317743,0.00020866,2]
[423514849,1780177842000,-493.01,0.00020897,2]
[423514858,1780177842000,-816.0,0.00021,2]
[423514854,1780177842000,-549.0,0.00021,2]
[423514843,1780177842000,-450.0,0.00020691,2]
[423514846,1780177842000,-804.65110196,0.000208,2]
[423514889,1780177842000,-500.0,0.00021821,2]
[423514892,1780177842000,-493.07475271,0.00021942,2]
[423514920,1780177842000,-1044.8,0.00022252,2]
[423514923,1780177842000,-596.08,0.00022252,2]
[423514924,1780177842000,-596.08,0.00022252,2]
[423514926,1780177842000,-596.08,0.00022252,2]
[423514921,1780177842000,-596.08,0.00022252,2]
[423514927,1780177842000,-596.08,0.00022252,2]
[423514922,1780177842000,-596.08,0.00022252,2]
[423514941,1780177842000,-151.0,0.00022253,2]
[423514934,1780177842000,-151.0,0.00022253,2]
[423514932,1780177842000,-151.0,0.00022253,2]
[423514942,1780177842000,-151.0,0.00022253,2]
[423514931,1780177842000,-151.0,0.00022253,2]
[423514919,1780177842000,-1044.8,0.00022252,2]
[423514940,1780177842000,-151.0,0.00022253,2]
[423514939,1780177842000,-151.0,0.00022253,2]
[423514936,1780177842000,-151.0,0.00022253,2]
[423514938,1780177842000,-151.0,0.00022253,2]
[423514937,1780177842000,-151.0,0.00022253,2]